bitfinex/quotes_SOLUSD_20250902
["timestamp","ask_amount","ask_price","bid_price","bid_amount"]
[1756789354377,0.06,203.22,203.16,76.23524865]
[1756789354581,38.48,203.21,203.18,0.68]
[1756789354970,38.48,203.21,203.19,0.68]
[1756789355483,43.40116502,203.21,203.19,0.68]
[1756789355793,38.54,203.22,203.2,0.66]
[1756789356485,0.06,203.22,203.21,0.66]
[1756789356781,0.06,203.22,203.17,2.23524865]
[1756789356782,30.98081452,203.22,203.17,2.23524865]
[1756789357084,30.98081452,203.22,203.18,0.66]
[1756789357693,38.48,203.21,203.14,0.03]
[1756789357876,38.48,203.21,203.15,0.66]
[1756789358069,38.5,203.2,203.15,0.66]
[1756789358892,38.5,203.21,203.16,2.23524865]
[1756789359198,38.5,203.21,203.17,0.66]
[1756789359381,38.5,203.21,203.15,2.23524865]
[1756789359701,4.92125984,203.2,203.16,0.66]
[1756789360102,4.92125984,203.2,203.17,0.66]
[1756789360770,26.0,203.17,203.14,0.03]
[1756789360971,38.5,203.16,203.14,0.03]
[1756789361192,38.85,203.16,203.14,0.03]
[1756789361786,5.27247108,203.15,203.14,0.03]
[1756789366690,43.46247108,203.15,203.14,0.03]
[1756789368089,4.92247108,203.15,203.14,0.03]
[1756789368288,26.70969368,203.21,203.14,0.69]
[1756789368289,43.44218895,203.17,203.14,0.69]
[1756789369004,4.92218895,203.17,203.14,0.69]
[1756789369697,4.92218895,203.17,203.14,0.03]
[1756789369896,4.92218895,203.17,203.15,0.66]
[1756789370112,4.92218895,203.17,203.16,0.66]
[1756789370323,38.54,203.18,203.16,0.66]
[1756789370516,38.54,203.18,203.17,0.66]
[1756789370993,38.54,203.18,203.14,0.03]
[1756789371193,38.54,203.18,203.15,0.66]
[1756789371415,43.46192028,203.18,203.15,0.66]
[1756789371612,43.46192028,203.18,203.14,0.03]
[1756789371917,69.44192028,203.18,203.16,0.66]
[1756789372133,69.44192028,203.18,203.17,0.66]
[1756789372604,69.44192028,203.18,203.14,0.03]
[1756789373010,69.44192028,203.18,203.15,0.66]
[1756789373908,69.44192028,203.18,203.14,0.03]
[1756789373909,81.74628094,203.18,203.14,0.03]
[1756789374234,30.92192028,203.18,203.15,0.66]
[1756789374412,69.42192028,203.18,203.14,0.03]
[1756789374813,69.42192028,203.18,203.14,0.69]
[1756789375018,69.42192028,203.18,203.14,0.03]
[1756789375553,69.42192028,203.18,203.14,0.69]
[1756789376413,69.42192028,203.18,203.14,0.03]
[1756789377846,69.42192028,203.18,203.14,0.69]
[1756789379249,12.30274291,203.21,203.15,0.66]
[1756789379250,4.92121721,203.21,203.15,0.66]
[1756789379554,38.5,203.2,203.15,2.89524865]
[1756789379754,64.5,203.2,203.15,2.23524865]
[1756789380044,64.5,203.2,203.16,0.66]
[1756789380416,26.0,203.2,203.16,2.89524865]
[1756789380615,4.92121721,203.21,203.17,0.66]
[1756789380820,0.06,203.22,203.18,2.23524865]
[1756789381025,0.06,203.22,203.19,0.66]
[1756789381233,4.98078166,203.22,203.19,0.66]
[1756789382034,0.06,203.22,203.2,0.66]
[1756789382350,0.06,203.22,203.21,0.66]
[1756789382848,0.06,203.22,203.17,76.23524865]
[1756789383033,0.06,203.22,203.17,74.0]
[1756789383239,26.0,203.2,203.14,0.03]
[1756789383426,38.58,203.22,203.18,0.66]
[1756789383631,38.58,203.22,203.19,0.66]
[1756789384750,38.58,203.22,203.16,0.66]
[1756789385136,43.52078529,203.22,203.16,0.66]
[1756789385354,4.98078529,203.22,203.16,0.66]
[1756789385559,43.52078529,203.22,203.16,0.66]
[1756789385770,43.87078529,203.22,203.14,0.74]
[1756789386068,43.52078529,203.22,203.15,2.23524865]
[1756789386363,43.52078529,203.22,203.16,0.71]
[1756789386544,38.6,203.22,203.16,2.94524865]
[1756789386741,43.52083801,203.22,203.17,2.94524865]
[1756789387051,0.06,203.22,203.18,2.94524865]
[1756789387249,0.06,203.22,203.18,2.23524865]
[1756789387554,0.06,203.22,203.19,0.71]
[1756789389132,0.06,203.22,203.17,0.71]
[1756789389332,0.06,203.22,203.18,0.71]
[1756789389843,0.06,203.22,203.19,0.71]
[1756789391060,0.06,203.22,203.15,82.41567303]
[1756789391257,0.06,203.22,203.17,0.71]
[1756789391572,0.06,203.22,203.14,0.03]
[1756789391573,38.87,203.21,203.14,0.74]
[1756789392136,4.92125984,203.2,203.14,0.74]
[1756789392369,26.0,203.18,203.14,0.03]
[1756789392537,38.54,203.17,203.14,0.03]
[1756789392741,38.89,203.17,203.14,0.03]
[1756789394463,4.92222878,203.16,203.14,0.03]
[1756789394654,26.0,203.15,203.14,0.03]
[1756789396144,30.92247108,203.15,203.14,0.03]
[1756789396765,31.27247108,203.15,203.14,0.03]
[1756789398137,4.92247108,203.15,203.14,0.03]
[1756789398341,43.42247108,203.15,203.14,0.03]
[1756789399864,4.92247108,203.15,203.14,0.03]
[1756789400168,0.06,203.18,203.14,4.23339076]
[1756789400357,0.06,203.18,203.17,3.49339076]
[1756789400864,0.06,203.18,203.17,0.71]
[1756789403068,0.06,203.18,203.17,74.71]
[1756789403271,0.06,203.18,203.17,0.71]
[1756789404788,0.06,203.18,203.14,0.03]
[1756789404991,38.56,203.18,203.14,0.74]
[1756789405151,38.56,203.18,203.15,0.71]
[1756789405468,38.56,203.18,203.14,0.03]
[1756789405674,0.06,203.18,203.16,0.71]
[1756789406145,0.06,203.18,203.17,0.71]
[1756789406660,0.06,203.18,203.15,74.71]
[1756789406867,0.06,203.18,203.16,0.71]
[1756789407054,0.06,203.18,203.15,74.0]
[1756789407365,0.06,203.18,203.15,74.71]
[1756789407772,0.06,203.18,203.14,0.03]
[1756789407961,0.06,203.18,203.15,0.71]
[1756789408548,26.06,203.18,203.15,0.71]
[1756789408750,0.06,203.18,203.14,3.52339076]
[1756789408950,0.06,203.18,203.15,0.71]
[1756789409269,0.06,203.18,203.17,3.49339076]
[1756789409475,0.06,203.18,203.17,4.20339076]
[1756789410160,0.06,203.18,203.17,0.71]
[1756789410355,0.06,203.18,203.14,0.74]
[1756789410677,0.06,203.18,203.15,0.71]
[1756789411057,0.06,203.18,203.16,0.71]
[1756789411754,0.06,203.18,203.17,0.71]
[1756789412484,0.06,203.18,203.14,0.74]
[1756789412782,0.06,203.18,203.15,0.71]
[1756789413271,0.06,203.18,203.16,0.71]
[1756789414463,0.06,203.18,203.16,74.71]
[1756789414981,0.06,203.18,203.16,74.0]
[1756789415364,0.06,203.18,203.14,0.03]
[1756789415554,0.06,203.18,203.15,0.72]
[1756789415760,0.06,203.18,203.16,0.72]
[1756789415955,0.06,203.18,203.17,0.72]
[1756789416866,0.06,203.18,203.17,5.64198651]
[1756789417069,0.06,203.18,203.17,0.72]
[1756789418478,0.06,203.18,203.17,74.72]
[1756789419056,0.06,203.18,203.17,79.64198651]
[1756789419976,0.06,203.18,203.17,74.72]
[1756789422167,0.06,203.18,203.17,0.72]
[1756789422578,0.06,203.18,203.14,8.44590423]
[1756789422790,0.06,203.18,203.14,0.03]
[1756789423065,0.06,203.18,203.14,0.75]
[1756789423288,0.35,203.17,203.14,0.03]
[1756789423894,38.58,203.18,203.14,0.03]
[1756789424093,38.93,203.18,203.14,0.03]
[1756789424391,38.54,203.17,203.14,0.03]
[1756789425169,4.92222878,203.16,203.14,0.03]
[1756789426065,0.35,203.15,203.14,0.03]
[1756789427065,64.87,203.15,203.14,0.03]
[1756789427507,69.79247108,203.15,203.14,0.03]
[1756789427798,69.44247108,203.15,203.14,0.03]
[1756789428984,64.52,203.15,203.14,0.03]
[1756789429293,26.0,203.15,203.14,0.03]
[1756789429482,30.92247108,203.15,203.14,0.03]
[1756789430481,31.27247108,203.15,203.14,0.03]
[1756789430884,69.42247108,203.15,203.14,0.03]
[1756789431788,30.92247108,203.15,203.14,0.03]
[1756789431990,69.40247108,203.15,203.14,0.03]
[1756789432896,30.92247108,203.15,203.14,0.03]
[1756789433199,26.0,203.15,203.14,0.75]
[1756789433885,26.0,203.15,203.14,0.03]
[1756789434092,30.92247108,203.15,203.14,0.03]
[1756789436098,30.92247108,203.15,203.14,0.75]
[1756789436493,26.0,203.15,203.14,0.75]
[1756789437219,26.0,203.15,203.14,0.03]
[1756789440305,38.44,203.16,203.14,0.75]
[1756789441422,43.36226031,203.16,203.14,0.75]
[1756789442726,30.92203677,203.17,203.14,0.03]
[1756789442903,69.32203677,203.17,203.14,0.75]
[1756789445326,69.32203677,203.17,203.14,0.03]
[1756789446509,69.32203677,203.17,203.14,0.74]
[1756789447220,69.32203677,203.17,203.14,0.03]
[1756789447610,69.67203677,203.17,203.14,0.03]
[1756789449605,0.35,203.16,203.14,0.03]
[1756789449808,64.34,203.15,203.14,0.03]
[1756789450217,69.26247108,203.15,203.14,0.03]
[1756789454023,69.61247108,203.15,203.1,0.2]
[1756789454225,50.29299993,203.15,203.04,0.03]
[1756789454430,26.0,203.11,203.04,0.03]
[1756789454615,26.0,203.11,203.04,0.74]
[1756789454616,26.0,203.07,203.04,0.74]
[1756789454814,26.0,203.12,203.04,0.74]
[1756789455029,38.38,203.11,203.06,2.23784597]
[1756789455325,38.38,203.11,203.07,0.71]
[1756789456412,2.267846,203.17,203.09,2.23784597]
[1756789456734,64.4,203.16,203.1,0.71]
[1756789457540,64.75,203.16,203.08,0.71]
[1756789457716,26.35,203.16,203.09,0.71]
[1756789458038,38.42,203.15,203.09,0.71]
[1756789458437,4.92271339,203.14,203.09,0.71]
[1756789458616,38.42,203.13,203.1,0.71]
[1756789459134,38.42,203.12,203.1,0.71]
[1756789459340,38.4,203.12,203.08,0.71]
[1756789459523,38.4,203.12,203.09,0.71]
[1756789459748,38.4,203.12,203.07,74.0]
[1756789460032,38.75,203.12,203.07,74.0]
[1756789460518,4.9234405,203.11,203.07,74.71]
[1756789460725,38.42,203.1,203.07,74.71]
[1756789461838,38.42,203.1,203.07,74.0]
[1756789462136,38.42,203.1,203.07,74.71]
[1756789464015,30.9234405,203.11,203.07,74.71]
[1756789464209,38.38,203.1,203.07,74.71]
[1756789465631,30.9234405,203.11,203.07,74.71]
[1756789465824,38.38,203.1,203.08,0.71]
[1756789466030,64.36,203.11,203.09,0.71]
[1756789466336,38.36,203.11,203.09,0.71]
[1756789466720,38.36,203.11,203.07,74.71]
[1756789466930,43.28349708,203.11,203.08,0.71]
[1756789467445,43.28349708,203.11,203.07,74.0]
[1756789467648,43.28349708,203.11,203.07,74.71]
[1756789468040,43.28349708,203.11,203.07,74.74]
[1756789468242,43.34349708,203.11,203.07,74.74]
[1756789468428,43.34349708,203.11,203.08,0.71]
[1756789468634,64.36,203.1,203.08,0.71]
[1756789469036,0.06,203.11,203.09,0.71]
[1756789469350,38.4,203.11,203.09,0.71]
[1756789469919,43.32349019,203.11,203.07,74.03]
[1756789470119,43.32349019,203.11,203.07,74.74]
[1756789472665,43.32349019,203.11,203.08,0.71]
[1756789472840,38.32,203.1,203.07,74.03]
[1756789473044,38.32,203.1,203.07,74.74]
[1756789474146,38.32,203.1,203.08,0.71]
[1756789474651,26.06,203.11,203.07,74.03]
[1756789474849,26.06,203.11,203.09,0.71]
[1756789475048,64.38,203.11,203.09,0.71]
[1756789475344,69.30349568,203.11,203.09,0.71]
[1756789475525,69.30349568,203.11,203.07,74.71]
[1756789475726,69.30349568,203.11,203.07,74.03]
[1756789476127,69.30349568,203.11,203.07,74.71]
[1756789476563,26.0,203.08,203.07,0.03]
[1756789476731,69.24416781,203.08,203.07,0.03]
[1756789476934,69.59416781,203.08,203.07,0.03]
[1756789477134,69.24416781,203.08,203.07,0.03]
[1756789481037,69.22416781,203.08,203.07,0.03]
[1756789484250,69.57416781,203.08,203.07,0.03]
[1756789484649,69.22416781,203.08,203.07,0.03]
[1756789485456,71.19845281,203.08,203.07,0.03]
[1756789485756,75.60177956,203.08,203.07,0.03]
[1756789486336,87.91219909,203.08,203.04,0.03]
[1756789486751,85.93791409,203.08,203.04,0.03]
[1756789486951,1.97448,203.07,203.04,0.03]
[1756789487265,38.26,203.06,203.03,0.03]
[1756789487467,30.9251379,203.04,203.03,0.03]
[1756789487644,69.2251379,203.04,203.03,0.03]
[1756789487960,71.5500069,203.04,203.03,0.03]
[1756789488954,71.2000069,203.04,203.03,0.03]
[1756789492162,32.9000069,203.04,203.03,0.03]
[1756789492343,71.2000069,203.04,203.03,0.03]
[1756789495363,71.5500069,203.04,203.03,0.03]
[1756789496364,71.2000069,203.04,203.03,0.03]
[1756789498057,71.5500069,203.04,203.03,0.03]
[1756789498365,71.5300069,203.04,203.03,0.03]
[1756789499555,71.5300069,203.04,203.01,0.03]
[1756789499755,75.67161029,203.04,202.99,0.03]
[1756789499974,26.0,203.0,202.99,0.03]
[1756789500186,64.3,203.0,202.95,0.03]
[1756789500346,64.3,203.0,202.95,0.71]
[1756789500541,26.0,203.0,202.95,0.71]
[1756789500860,27.975357,202.99,202.98,0.68]
[1756789501078,66.295357,202.99,202.98,0.68]
[1756789501655,1.975357,202.99,202.98,0.68]
[1756789501861,38.34,202.99,202.98,0.68]
[1756789502382,64.34,202.99,202.98,0.68]
[1756789502761,64.34,202.99,202.98,0.71]
[1756789507183,69.26635105,202.99,202.98,0.71]
[1756789507379,69.26635105,202.99,202.98,0.03]
[1756789507580,69.26635105,202.99,202.98,0.73]
[1756789508378,64.34,202.99,202.98,0.73]
[1756789511063,38.28,202.99,202.98,0.73]
[1756789511264,64.28,203.0,202.98,0.73]
[1756789511581,69.20613076,203.0,202.98,0.73]
[1756789511884,69.20613076,203.0,202.99,0.7]
[1756789512594,64.28,203.0,202.98,0.03]
[1756789512899,64.28,203.0,202.99,0.7]
[1756789513067,69.20610837,203.0,202.99,0.7]
[1756789513680,26.0,203.0,202.99,0.7]
[1756789513885,64.28,203.0,202.99,0.7]
[1756789518076,64.28,203.0,202.98,0.03]
[1756789518269,64.28,203.0,202.99,0.7]
[1756789519196,69.20612106,203.0,202.98,0.03]
[1756789519386,64.28,203.0,202.98,0.03]
[1756789519587,64.28,203.0,202.99,0.7]
[1756789520070,64.34,203.0,202.99,0.7]
[1756789522678,69.2662,203.0,202.98,0.03]
[1756789523299,69.2662,203.0,202.98,0.73]
[1756789523473,64.34,203.0,202.98,0.73]
[1756789523882,26.06,203.0,202.99,0.7]
[1756789524080,64.34,203.0,202.99,0.7]
[1756789524800,64.34,203.0,202.98,0.73]
[1756789524987,69.26615068,203.0,202.98,0.03]
[1756789526601,69.26615068,203.0,202.98,0.73]
[1756789526812,64.34,203.0,202.99,0.7]
[1756789527324,69.26613054,203.0,202.98,0.03]
[1756789527484,69.26613054,203.0,202.98,0.73]
[1756789527688,69.26613054,203.0,202.98,0.03]
[1756789528011,69.26613054,203.0,202.99,0.7]
[1756789528185,64.34,203.0,202.98,0.03]
[1756789529110,69.26612474,203.0,202.98,0.03]
[1756789529410,64.34,203.0,202.98,0.03]
[1756789530005,69.26617983,203.0,202.98,0.03]
[1756789530401,0.32,202.99,202.98,0.03]
[1756789530709,15.134449,202.99,202.98,0.03]
[1756789530905,30.92707922,202.96,202.95,0.03]
[1756789531127,69.20707922,202.96,202.95,0.03]
[1756789531327,69.52707922,202.96,202.95,0.03]
[1756789531536,33.22263222,202.96,202.95,0.03]
[1756789531698,71.50263222,202.96,202.95,0.03]
[1756789531899,69.20707922,202.96,202.95,0.03]
[1756789534204,69.52707922,202.96,202.95,0.03]
[1756789534402,69.20707922,202.96,202.95,0.03]
[1756789535335,71.18253422,202.96,202.95,0.03]
[1756789535518,71.50253422,202.96,202.95,0.03]
[1756789536842,13.59559401,202.95,202.93,0.2]
[1756789537045,13.59559401,202.95,202.87,0.71]
[1756789537046,26.0,202.91,202.87,0.71]
[1756789537207,26.0,202.87,202.82,0.2]
[1756789537405,38.28,202.86,202.82,0.2]
[1756789537805,38.28,202.86,202.83,0.71]
[1756789538031,38.3,202.86,202.83,0.71]
[1756789539929,38.3,202.86,202.83,74.71]
[1756789540104,38.3,202.86,202.84,0.71]
[1756789540306,38.3,202.86,202.85,0.71]
[1756789540507,38.3,202.87,202.85,0.71]
[1756789540720,64.3,202.88,202.85,0.71]
[1756789540917,64.3,202.88,202.86,0.71]
[1756789541532,64.3,202.88,202.87,0.71]
[1756789541719,64.3,202.88,202.83,74.0]
[1756789541917,69.22906081,202.88,202.84,0.71]
[1756789542113,69.22906081,202.88,202.83,74.0]
[1756789542311,69.22906081,202.88,202.85,0.71]
[1756789542512,69.22906081,202.88,202.86,0.71]
[1756789542916,69.22906081,202.88,202.87,0.71]
[1756789543225,43.22906081,202.88,202.87,0.71]
[1756789543626,4.92906081,202.88,202.87,0.71]
[1756789543823,43.22906081,202.88,202.87,0.71]
[1756789544229,38.3,202.88,202.87,0.71]
[1756789545526,43.22906081,202.88,202.87,0.71]
[1756789546607,43.22906081,202.88,202.82,5.13046656]
[1756789546832,43.22906081,202.88,202.87,0.71]
[1756789547531,43.22906081,202.88,202.85,0.71]
[1756789547716,4.92853622,202.9,202.86,0.71]
[1756789547918,38.3,202.89,202.86,0.71]
[1756789548428,26.0,202.86,202.82,0.2]
[1756789548625,26.0,202.83,202.82,0.2]
[1756789548830,64.3,202.83,202.82,0.2]
[1756789549937,69.23023714,202.83,202.82,0.2]
[1756789551621,26.0,202.79,202.77,0.2]
[1756789552010,38.42,202.78,202.77,0.2]
[1756789552212,38.64,202.78,202.77,0.2]
[1756789552416,40.61731,202.78,202.77,0.2]
[1756789552817,2.19731,202.78,202.77,0.2]
[1756789553026,40.63731,202.78,202.77,0.2]
[1756789553933,45.5687628,202.78,202.77,0.2]
[1756789555422,59.14435681,202.78,202.77,1e-08]
[1756789555648,59.16435681,202.78,202.77,1e-08]
[1756789555824,20.72435681,202.78,202.77,1e-08]
[1756789556030,59.16435681,202.78,202.77,1e-08]
[1756789556536,26.0,202.75,202.72,0.03]
[1756789556847,78.03559401,202.75,202.67,0.71]
[1756789557022,78.25559401,202.75,202.67,0.71]
[1756789557222,91.85118801,202.75,202.67,0.71]
[1756789557418,44.52777649,202.75,202.64,3.50135154]
[1756789557623,43.37218249,202.75,202.71,0.71]
[1756789557910,43.37218249,202.75,202.65,4.93449835]
[1756789558115,43.37218249,202.75,202.58,26.0]
[1756789558116,57.1877765,202.75,202.74,1e-08]
[1756789558536,43.37218249,202.75,202.74,1e-08]
[1756789559135,4.93218249,202.75,202.74,1e-08]
[1756789559432,43.71218249,202.75,202.74,1e-08]
[1756789559829,43.49218249,202.75,202.74,1e-08]
[1756789560224,4.93218249,202.75,202.74,1e-08]
[1756789560446,43.71218249,202.75,202.74,1e-08]
[1756789560622,43.49218249,202.75,202.74,1e-08]
[1756789560945,52.14814349,202.75,202.74,1e-08]
[1756789561117,51.92814349,202.75,202.74,1e-08]
[1756789561445,38.58,202.75,202.74,0.71000001]
[1756789563240,38.58,202.76,202.74,0.71000001]
[1756789563428,38.58,202.76,202.75,0.71]
[1756789564020,26.0,202.78,202.75,0.71]
[1756789564223,38.58,202.77,202.75,0.71]
[1756789564623,38.58,202.77,202.74,1e-08]
[1756789564951,26.0,202.75,202.74,1e-08]
[1756789565138,64.58,202.75,202.74,1e-08]
[1756789565531,64.58,202.75,202.74,0.71000001]
[1756789565857,69.51218249,202.75,202.74,1e-08]
[1756789573464,69.57218249,202.75,202.74,1e-08]
[1756789574882,43.53218249,202.75,202.74,1e-08]
[1756789578679,26.0,202.72,202.71,0.74]
[1756789578869,64.52,202.72,202.71,0.03]
[1756789579590,64.52,202.72,202.71,0.74]
[1756789579769,69.45291239,202.72,202.71,0.74]
[1756789580802,69.45291239,202.72,202.71,0.03]
[1756789580964,26.0,202.68,202.66,0.71]
[1756789581165,38.74,202.67,202.66,0.71]
[1756789581468,38.74,202.67,202.58,4.93628699]
[1756789581664,38.74,202.67,202.59,0.71]
[1756789581865,4.93437284,202.66,202.59,0.71]
[1756789582089,38.76,202.65,202.59,0.71]
[1756789583394,26.0,202.62,202.59,0.71]
[1756789583585,64.74,202.62,202.59,0.71]
[1756789583789,69.67555873,202.62,202.6,0.71]
[1756789584095,69.67555873,202.62,202.61,0.71]
[1756789585971,64.74,202.62,202.61,0.71]
[1756789586666,69.67534695,202.62,202.61,0.71]
[1756789588702,64.74,202.62,202.61,0.71]
[1756789590494,69.67534695,202.62,202.58,0.71]
[1756789590700,69.67534695,202.62,202.49,13.59559401]
[1756789590701,69.67534695,202.62,202.51,13.59559401]
[1756789590879,69.67534695,202.62,202.59,0.71]
[1756789591211,69.67534695,202.62,202.6,0.71]
[1756789592208,69.67534695,202.62,202.57,0.71]
[1756789592406,69.67534695,202.62,202.58,0.71]
[1756789592613,69.67534695,202.62,202.53,4.93739549]
[1756789592614,69.67534695,202.62,202.59,0.71]
[1756789592797,69.67534695,202.62,202.6,0.71]
[1756789592993,64.74,202.62,202.61,0.71]
[1756789593200,69.67535396,202.62,202.53,4.93739549]
[1756789593395,69.67535396,202.62,202.54,0.71]
[1756789593610,64.74,202.62,202.54,0.71]
[1756789593805,38.7,202.61,202.55,2.24760699]
[1756789594004,38.7,202.62,202.56,0.71]
[1756789595010,38.7,202.62,202.57,4.93656513]
[1756789595200,38.7,202.62,202.58,0.65]
[1756789595798,138.737395,202.67,202.58,0.65]
[1756789596116,38.68,202.66,202.58,0.65]
[1756789596302,38.68,202.65,202.58,0.65]
[1756789597199,38.68,202.65,202.59,4.93607779]
[1756789597400,38.68,202.65,202.6,0.65]
[1756789597942,38.68,202.65,202.6,74.65]
[1756789598106,38.68,202.65,202.61,0.65]
[1756789598802,0.22,202.7,202.61,0.65]
[1756789599101,26.0,202.66,202.62,4.93534695]
[1756789599302,26.0,202.66,202.63,0.65]
[1756789600437,38.66,202.65,202.59,0.65]
[1756789600600,26.0,202.62,202.54,14.834227]
[1756789600808,26.0,202.58,202.5,13.79559401]
[1756789601022,64.7,202.58,202.55,0.65]
[1756789601231,26.0,202.58,202.56,0.65]
[1756789601438,38.7,202.59,202.56,0.65]
[1756789601645,64.7,202.6,202.56,0.65]
[1756789602354,4.93438219,202.66,202.56,0.65]
[1756789602515,26.0,202.62,202.56,2.89760699]
[1756789602823,26.0,202.62,202.57,0.65]
[1756789603323,26.0,202.59,202.55,0.65]
[1756789604031,38.74,202.59,202.55,0.65]
[1756789604438,38.74,202.59,202.54,74.0]
[1756789604638,38.74,202.59,202.55,0.65]
[1756789604837,38.74,202.59,202.56,0.65]
[1756789605537,38.74,202.59,202.54,78.93729258]
[1756789605709,38.74,202.59,202.55,0.65]
[1756789605914,38.74,202.59,202.56,0.65]
[1756789606114,38.72,202.61,202.56,0.65]
[1756789606324,26.0,202.61,202.56,0.65]
[1756789606725,26.0,202.61,202.54,78.93729258]
[1756789607023,26.0,202.61,202.55,0.65]
[1756789609119,30.935669,202.61,202.55,0.65]
[1756789609321,31.155669,202.61,202.55,0.65]
[1756789609521,31.155669,202.61,202.56,0.03]
[1756789610034,26.0,202.58,202.56,0.03]
[1756789610340,26.0,202.59,202.56,0.03]
[1756789610527,26.0,202.58,202.56,0.03]
[1756789610726,26.0,202.58,202.56,0.68]
[1756789610934,26.0,202.59,202.57,0.65]
[1756789611749,26.0,202.59,202.56,0.03]
[1756789611956,26.0,202.59,202.56,0.68]
[1756789612555,26.0,202.59,202.57,0.65]
[1756789612756,26.0,202.59,202.58,0.65]
[1756789613440,26.0,202.59,202.57,74.0]
[1756789613657,26.0,202.59,202.57,74.65]
[1756789614954,26.0,202.59,202.58,0.65]
[1756789615749,26.0,202.62,202.58,0.65]
[1756789615946,64.76,202.62,202.58,0.65]
[1756789617736,64.76,202.62,202.57,4.93648043]
[1756789618061,64.76,202.62,202.57,5.58648043]
[1756789618946,64.76,202.62,202.57,79.58648043]
[1756789620061,64.76,202.62,202.58,0.65]
[1756789620633,69.69539172,202.62,202.57,74.0]
[1756789620857,0.22,202.61,202.57,74.0]
[1756789621359,0.22,202.61,202.56,0.68]
[1756789621360,0.22,202.6,202.56,0.03]
[1756789621658,69.69539172,202.62,202.56,0.03]
[1756789621659,38.68,202.59,202.56,0.03]
[1756789621868,26.0,202.57,202.56,0.03]
[1756789624658,38.68,202.61,202.56,0.68]
[1756789625742,64.68,202.6,202.56,0.68]
[1756789626468,64.66,202.6,202.57,0.68]
[1756789626642,64.66,202.6,202.56,0.03]
[1756789626842,64.66,202.6,202.56,0.71]
[1756789627566,0.22,202.59,202.56,0.03]
[1756789627770,5.15625575,202.59,202.56,0.03]
[1756789627956,26.0,202.57,202.56,0.03]
[1756789630367,30.93656513,202.57,202.56,0.03]
[1756789630566,69.79656513,202.57,202.56,0.03]
[1756789630885,69.57656513,202.57,202.56,0.03]
[1756789631246,64.64,202.57,202.56,0.03]
[1756789631772,26.0,202.57,202.56,0.03]
[1756789632149,4.14700726,202.64,202.56,0.71]
[1756789632350,4.93492312,202.64,202.56,0.71]
[1756789632653,38.68,202.63,202.56,0.71]
[1756789633276,0.22,202.66,202.57,26.0]
[1756789633449,38.68,202.65,202.58,0.68]
[1756789633650,38.68,202.65,202.58,74.68]